bitfinex/quotes_SOLUSD_20250918
["timestamp","ask_amount","ask_price","bid_price","bid_amount"]
[1758189941732,0.7,246.74,246.73,0.03]
[1758189946741,0.06,246.76,246.73,0.03]
[1758189947052,0.7,246.75,246.73,0.03]
[1758189948259,4.75284034,246.75,246.73,0.03]
[1758189948457,7.03396734,246.75,246.73,0.03]
[1758189948650,0.7,246.75,246.73,0.03]
[1758189948862,0.7,246.74,246.73,0.03]
[1758189958463,7.03397615,246.74,246.73,0.03]
[1758189959056,4.75284915,246.74,246.73,0.03]
[1758189959256,7.03397615,246.74,246.73,0.03]
[1758189960575,2.981127,246.74,246.73,0.03]
[1758189962459,7.03397615,246.74,246.73,0.03]
[1758189965375,2.981127,246.74,246.73,0.03]
[1758189971585,2.281127,246.74,246.73,0.03]
[1758189973370,34.141127,246.75,246.73,0.03]
[1758189973703,33.481127,246.75,246.73,0.03]
[1758189973875,31.2,246.75,246.73,0.03]
[1758189974065,0.06,246.75,246.73,0.03]
[1758189974395,0.66,246.74,246.73,0.03]
[1758189976390,0.72,246.74,246.73,0.03]
[1758189981999,0.06,246.74,246.73,0.03]
[1758189982376,0.72,246.74,246.73,0.03]
[1758189982575,0.06,246.74,246.73,0.03]
[1758189982967,0.72,246.74,246.73,0.03]
[1758189989294,0.06,246.74,246.73,0.03]
[1758189989676,0.72,246.74,246.73,0.03]
[1758189992798,0.06,246.74,246.73,39.62559401]
[1758189993185,0.06,246.74,246.73,51.93197251]
[1758189993578,0.06,246.75,246.74,13.73775558]
[1758189993786,0.7,246.75,246.74,13.59559401]
[1758189993982,0.7,246.75,246.74,17.64844316]
[1758189994191,0.06,246.76,246.74,17.64844316]
[1758189994680,0.06,246.76,246.75,14.04559401]
[1758189994891,0.06,246.76,246.75,15.21735808]
[1758189995990,0.06,246.76,246.75,19.27004298]
[1758190001207,0.06,246.76,246.75,19.86220455]
[1758190001519,0.06,246.76,246.75,51.28652769]
[1758190001687,0.06,246.76,246.75,20.14652769]
[1758190002008,0.06,246.76,246.75,51.28652769]
[1758190004710,0.06,246.76,246.75,50.83652769]
[1758190005923,0.06,246.76,246.75,19.41220455]
[1758190011619,0.06,246.76,246.75,19.44220455]
[1758190012289,0.06,246.76,246.75,20.17652769]
[1758190016505,0.06,246.76,246.75,51.29652769]
[1758190019815,0.06,246.76,246.75,50.84652769]
[1758190022631,0.06,246.76,246.75,19.72652769]
[1758190022804,0.06,246.76,246.75,50.84652769]
[1758190024109,0.06,246.77,246.76,14.02207872]
[1758190024306,0.06,246.77,246.76,18.52459938]
[1758190024628,1e-08,246.77,246.76,18.52459938]
[1758190025223,0.68,246.85,246.8,14.02207872]
[1758190025398,0.68,246.83,246.8,45.14207872]
[1758190025602,0.68,246.83,246.8,14.02207872]
[1758190025804,0.68,246.83,246.8,46.76311983]
[1758190026429,0.1,246.89,246.8,50.81498368]
[1758190026609,0.68,246.85,246.8,50.81498368]
[1758190027225,0.1,246.89,246.8,19.69498368]
[1758190027432,0.74,246.81,246.8,50.81498368]
[1758190028809,0.06,246.81,246.8,50.81498368]
[1758190030106,0.06,246.81,246.8,19.69498368]
[1758190030428,0.06,246.81,246.8,50.81498368]
[1758190031524,0.06,246.81,246.8,19.69498368]
[1758190031820,0.06,246.81,246.8,49.19394257]
[1758190033254,0.06,246.81,246.8,14.02207872]
[1758190033409,0.74,246.81,246.8,13.59559401]
[1758190033814,0.74,246.81,246.75,0.03]
[1758190034109,0.74,246.81,246.77,0.14216157]
[1758190034306,0.74,246.81,246.79,26.0]
[1758190034515,0.68,246.8,246.79,39.59559401]
[1758190035122,0.68,246.8,246.77,13.59559401]
[1758190035421,0.68,246.79,246.77,13.59559401]
[1758190035632,0.68,246.78,246.77,13.59559401]
[1758190036138,0.68,246.78,246.77,26.0]
[1758190039029,0.68,246.78,246.75,13.62559401]
[1758190039342,0.68,246.77,246.75,13.62559401]
[1758190039647,6.3918113,246.81,246.75,13.76775558]
[1758190039648,0.68,246.76,246.75,13.76775558]
[1758190040449,0.68,246.76,246.75,17.82044048]
[1758190041850,0.68,246.76,246.75,0.03]
[1758190042364,0.68,246.76,246.75,4.0826849]
[1758190042539,0.68,246.76,246.75,30.0826849]
[1758190042734,0.68,246.78,246.76,13.59559401]
[1758190043045,0.06,246.81,246.79,26.0]
[1758190043237,0.68,246.8,246.79,26.0]
[1758190043636,0.68,246.8,246.79,30.05202804]
[1758190046056,0.68,246.8,246.76,26.0]
[1758190046235,0.74,246.79,246.76,26.0]
[1758190046536,0.68,246.78,246.76,26.0]
[1758190046734,0.06,246.79,246.75,0.03]
[1758190046735,0.68,246.77,246.75,0.03]
[1758190047136,0.68,246.76,246.75,26.03]
[1758190047952,0.68,246.76,246.75,0.03]
[1758190048753,0.68,246.76,246.75,26.03]
[1758190049732,2.34008514,246.79,246.75,0.03]
[1758190049953,0.68,246.78,246.75,0.03]
[1758190052143,4.73219339,246.78,246.75,0.03]
[1758190052350,7.01227853,246.78,246.75,0.03]
[1758190052962,4.73219339,246.78,246.75,0.03]
[1758190054458,7.01227853,246.78,246.75,0.03]
[1758190056167,4.73219339,246.78,246.75,0.03]
[1758190057759,7.01227853,246.78,246.75,0.03]
[1758190058463,4.73219339,246.78,246.75,0.03]
[1758190060279,2.28008514,246.77,246.75,0.03]
[1758190060485,4.73219339,246.78,246.75,0.03]
[1758190060486,2.28008514,246.76,246.75,0.03]
[1758190060659,2.99008514,246.76,246.75,0.03]
[1758190061978,0.71,246.76,246.75,0.03]
[1758190062363,0.06,246.79,246.75,0.03]
[1758190062678,0.71,246.78,246.75,0.03]
[1758190063679,4.11203809,246.79,246.75,0.03]
[1758190063870,0.71,246.77,246.75,0.03]
[1758190064352,0.71,246.76,246.75,0.03]
[1758190066178,4.76252066,246.76,246.75,0.03]
[1758190067163,7.0426058,246.76,246.75,0.03]
[1758190073888,2.99008514,246.76,246.75,0.03]
[1758190074093,7.0426058,246.76,246.75,0.03]
[1758190074491,2.99008514,246.76,246.75,0.03]
[1758190074698,6.3324629,246.77,246.75,0.03]
[1758190075096,2.28008514,246.77,246.75,0.03]
[1758190075391,2.94008514,246.77,246.75,0.03]
[1758190075603,6.3322789,246.78,246.75,0.03]
[1758190075786,3.00008514,246.79,246.75,0.03]
[1758190076005,0.72,246.79,246.75,0.03]
[1758190076470,4.77203778,246.79,246.75,0.03]
[1758190076667,7.05212292,246.79,246.75,0.03]
[1758190077696,3.00008514,246.79,246.75,0.03]
[1758190077881,7.05211769,246.79,246.75,0.03]
[1758190078798,3.00008514,246.79,246.75,0.03]
[1758190080093,0.66,246.78,246.75,0.03]
[1758190080284,2.94008514,246.78,246.75,0.03]
[1758190080484,0.66,246.77,246.75,0.03]
[1758190084795,2.34008514,246.79,246.75,0.03]
[1758190085099,0.67,246.77,246.75,0.03]
[1758190085495,0.67,246.76,246.75,0.03]
[1758190086693,2.34008514,246.79,246.75,0.03]
[1758190087002,0.67,246.78,246.75,0.03]
[1758190087178,2.95008514,246.78,246.75,0.03]
[1758190088184,0.06,246.79,246.75,0.03]
[1758190088384,0.73,246.79,246.75,0.03]
[1758190088783,0.73,246.79,246.76,26.0]
[1758190089181,0.06,246.79,246.76,26.0]
[1758190089380,0.42648471,246.72,246.66,4.14639745]
[1758190089574,0.42648471,246.72,246.53,0.68]
[1758190089575,0.28432314,246.66,246.53,0.68]
[1758190089780,34.14008514,246.65,246.53,0.68]
[1758190090314,55.82152045,246.65,246.53,0.68]
[1758190090493,2.28008514,246.57,246.53,0.68]
[1758190090691,2.28008514,246.57,246.54,0.68]
[1758190091001,21.14143531,246.56,246.55,0.68]
[1758190091775,23.42152045,246.56,246.55,0.68]
[1758190094393,21.14143531,246.56,246.55,0.68]
[1758190095385,21.14143531,246.56,246.54,0.68]
[1758190095584,21.14143531,246.56,246.55,0.68]
[1758190096414,21.14143531,246.56,246.55,0.71]
[1758190096797,21.14143531,246.56,246.52,17.68204108]
[1758190096798,21.14143531,246.56,246.52,17.2486807]
[1758190098907,21.14143531,246.56,246.53,0.68]
[1758190099709,21.14143531,246.56,246.52,17.2486807]
[1758190099895,21.14143531,246.56,246.53,0.68]
[1758190100911,22.60338939,246.56,246.53,0.68]
[1758190101284,6.94524511,246.55,246.53,0.68]
[1758190103893,6.94524511,246.55,246.53,4.0562675]
[1758190104093,6.94524511,246.55,246.54,0.68]
[1758190105012,6.94524511,246.55,246.54,14.41775558]
[1758190105708,6.94524511,246.55,246.54,18.47389251]
[1758190115025,6.94524511,246.55,246.54,17.79389251]
[1758190115320,6.94524511,246.55,246.54,18.50389251]
[1758190116104,6.94524511,246.55,246.54,17.79389251]
[1758190119034,6.94524511,246.55,246.54,18.50389251]
[1758190119408,6.94524511,246.55,246.54,17.79389251]
[1758190119821,6.94524511,246.55,246.54,18.50389251]
[1758190122035,6.94524511,246.55,246.54,17.65173094]
[1758190122335,6.94524511,246.55,246.54,17.79389251]
[1758190124746,0.06,246.56,246.55,17.65156642]
[1758190125427,0.78,246.56,246.55,17.65156642]
[1758190126238,0.06,246.56,246.55,17.65156642]
[1758190127239,0.06,246.56,246.54,0.14216157]
[1758190127240,0.06,246.56,246.54,39.73775558]
[1758190127744,0.06,246.56,246.54,40.44775558]
[1758190127917,0.06,246.56,246.54,44.50385416]
[1758190133040,0.06,246.56,246.55,0.71]
[1758190133740,0.06,246.56,246.54,43.79385416]
[1758190133932,0.06,246.56,246.54,44.50385416]
[1758190134330,0.06,246.56,246.55,0.85216157]
[1758190135145,0.06,246.56,246.55,14.44775558]
[1758190135354,0.06,246.56,246.55,14.73207872]
[1758190135549,0.06,246.56,246.55,14.70207872]
[1758190136542,0.06,246.56,246.55,18.75805113]
[1758190139551,0.06,246.56,246.55,50.25805113]
[1758190139855,0.74,246.56,246.55,49.29372799]
[1758190140060,0.06,246.56,246.55,17.79372799]
[1758190142248,0.73,246.56,246.55,17.65156642]
[1758190142454,4.92017258,246.56,246.52,13.62559401]
[1758190142659,0.67,246.55,246.52,13.62559401]
[1758190142834,0.67,246.55,246.52,17.68204438]
[1758190143034,0.06,246.56,246.52,17.68204438]
[1758190143035,0.67,246.54,246.52,17.68204438]
[1758190144954,0.73,246.56,246.52,17.68204438]
[1758190145156,0.67,246.55,246.52,17.68204438]
[1758190145643,0.67,246.55,246.52,18.39204438]
[1758190146643,0.06,246.56,246.52,18.39204438]
[1758190146843,0.73,246.56,246.52,18.39204438]
[1758190147970,0.67,246.55,246.52,17.68204438]
[1758190148975,0.73,246.56,246.52,18.39204438]
[1758190149558,0.06,246.56,246.52,17.68204438]
[1758190149767,0.67,246.55,246.52,17.68204438]
[1758190150069,0.67,246.54,246.52,17.68204438]
[1758190150249,0.67,246.54,246.52,13.62559401]
[1758190150447,2.72738993,246.53,246.52,0.03]
[1758190151672,3.39738993,246.53,246.52,0.03]
[1758190152264,4.85741894,246.53,246.52,0.03]
[1758190152952,6.31937302,246.53,246.52,0.03]
[1758190155963,4.85741894,246.53,246.52,0.03]
[1758190157750,5.68149589,246.53,246.52,0.03]
[1758190158252,5.24206206,246.53,246.52,0.03]
[1758190158459,7.96752692,246.53,246.52,0.03]
[1758190162566,12.02382838,246.53,246.52,0.03]
[1758190163377,9.73779735,246.53,246.52,0.03]
[1758190163854,7.01233249,246.53,246.52,0.03]
[1758190164780,7.07233249,246.53,246.52,0.03]
[1758190165983,12.08382838,246.53,246.52,0.03]
[1758190167662,12.08382838,246.53,246.49,0.03]
[1758190167663,26.28432314,246.5,246.49,0.03]
[1758190167869,62.69581903,246.5,246.49,0.03]
[1758190168176,0.28432314,246.49,246.41,0.44]
[1758190168358,2.28603103,246.48,246.41,0.44]
[1758190168561,2.95603103,246.48,246.41,0.44]
[1758190169186,7.01315534,246.48,246.41,0.44]
[1758190169868,7.01315534,246.48,246.41,1.15]
[1758190170389,37.82315534,246.48,246.45,0.71]
[1758190170556,40.5486202,246.48,246.45,0.71]
[1758190170752,40.5286202,246.48,246.45,0.71]
[1758190170980,40.5286202,246.48,246.41,0.44]
[1758190170981,9.0686202,246.48,246.41,4.49826167]
[1758190171279,40.5286202,246.48,246.47,0.74]
[1758190171479,40.5286202,246.48,246.47,0.03]
[1758190173261,37.80315534,246.48,246.47,0.03]
[1758190173662,38.49315534,246.48,246.47,0.03]
[1758190174187,37.80315534,246.48,246.47,0.03]
[1758190175169,38.49315534,246.48,246.47,0.03]
[1758190175974,41.2001041,246.48,246.47,0.03]
[1758190177486,40.5101041,246.48,246.47,0.03]
[1758190178488,33.70603103,246.48,246.47,0.72]
[1758190181311,37.76315534,246.48,246.47,0.03]
[1758190181679,37.76315534,246.48,246.47,0.72]
[1758190181876,35.47712431,246.48,246.47,0.72]
[1758190182175,1.58340001,246.49,246.47,0.72]
[1758190182405,33.72603103,246.48,246.47,0.03]
[1758190182887,33.72603103,246.48,246.47,0.72]
[1758190184899,31.44,246.48,246.47,0.72]
[1758190185071,1.64340001,246.49,246.47,0.72]
[1758190185270,31.42,246.48,246.47,0.72]
[1758190185469,31.42,246.48,246.47,4.77728891]
[1758190186982,1.64340001,246.49,246.47,4.77728891]
[1758190187190,1.64340001,246.49,246.47,4.08728891]
[1758190187376,1.64340001,246.49,246.48,0.69]
[1758190190774,1.64340001,246.49,246.48,4.74712431]
[1758190194606,1.64340001,246.49,246.48,0.69]
[1758190195100,6.64833695,246.49,246.47,0.03]
[1758190195308,31.38,246.48,246.47,0.03]
[1758190195601,34.09890591,246.48,246.47,0.03]
[1758190195777,34.09890591,246.48,246.47,0.75]
[1758190200294,34.09890591,246.48,246.47,4.80728891]
[1758190201386,2.71890591,246.48,246.47,4.80728891]
[1758190202292,31.42,246.49,246.47,4.80728891]
[1758190202602,31.42,246.49,246.48,0.71]
[1758190203115,34.14407651,246.49,246.47,4.79727542]
[1758190203433,31.42,246.49,246.47,4.79727542]
[1758190203789,31.42,246.49,246.48,0.71]
[1758190203984,34.144238,246.49,246.48,0.71]
[1758190204189,2.784238,246.49,246.48,4.76712431]
[1758190204528,0.06,246.49,246.48,4.76712431]
[1758190204707,0.06,246.49,246.48,30.76712431]
[1758190204895,0.06,246.49,246.48,44.50487989]
[1758190205221,0.06,246.49,246.48,51.96477477]
[1758190207190,0.06,246.49,246.48,52.67477477]
[1758190208016,0.06,246.49,246.48,56.73189908]
[1758190210907,0.06,246.49,246.48,88.05189908]
[1758190211620,0.77,246.49,246.48,55.59541437]
[1758190211825,0.77,246.49,246.48,13.59559401]
[1758190212609,0.77,246.49,246.48,39.59559401]
[1758190212805,0.77,246.49,246.47,0.03]
[1758190213011,2.28603103,246.48,246.47,0.03]
[1758190213212,3.05603103,246.49,246.47,0.03]
[1758190213507,0.71,246.48,246.47,0.03]
[1758190216323,2.99603103,246.48,246.47,0.03]
[1758190216528,5.71678715,246.48,246.47,0.03]
[1758190217023,9.77391146,246.48,246.47,0.03]
[1758190217919,8.95096312,246.48,246.47,0.03]
[1758190227836,12.34062527,246.48,246.47,0.03]
[1758190228038,26.0,246.45,246.44,0.03]
[1758190228239,60.10075612,246.45,246.44,0.03]
[1758190228454,62.27383881,246.45,246.44,0.03]
[1758190228625,65.36138594,246.45,246.44,0.03]
[1758190228834,73.43387431,246.45,246.44,0.03]
[1758190229137,0.28432314,246.44,246.3,2.33446444]
[1758190229333,26.0,246.4,246.31,0.71]
[1758190229541,1.46308269,246.37,246.31,0.71]
[1758190229759,1.46308269,246.36,246.31,0.71]
[1758190229959,1.46308269,246.36,246.31,4.76983495]
[1758190230151,1.46308269,246.36,246.32,0.71]
[1758190230469,1.46308269,246.36,246.33,0.71]
[1758190230670,1.46308269,246.36,246.34,0.71]
[1758190230967,1.46308269,246.38,246.34,0.71]
[1758190231166,5.85233076,246.42,246.34,0.71]
[1758190231167,32.56,246.37,246.34,0.71]
[1758190231465,1.46308269,246.39,246.34,0.71]
[1758190231647,1.46308269,246.38,246.35,0.71]
[1758190232249,32.56,246.4,246.35,0.71]
[1758190232448,33.22,246.4,246.35,0.71]
[1758190233758,0.66,246.39,246.32,0.67]
[1758190233953,2.12308269,246.39,246.32,0.67]
[1758190234977,4.058771,246.38,246.32,0.67]
[1758190235150,4.718771,246.38,246.32,0.67]
[1758190235652,37.27847608,246.4,246.32,0.67]
[1758190235847,33.22,246.4,246.32,4.72971423]
[1758190236053,33.22,246.4,246.33,0.67]
[1758190236357,37.2784447,246.4,246.33,0.67]
[1758190236561,0.66,246.39,246.33,0.67]
[1758190237057,32.56,246.4,246.33,4.72955749]
[1758190237374,32.56,246.4,246.34,0.67]
[1758190237567,33.22,246.4,246.34,0.67]
[1758190238481,37.27846639,246.4,246.34,0.67]
[1758190238763,32.56,246.4,246.34,0.67]
[1758190238973,32.56,246.4,246.35,4.05926527]
[1758190239163,32.56,246.4,246.36,0.67]
[1758190239778,0.66,246.39,246.34,13.73775558]
[1758190239982,0.66,246.39,246.34,14.40775558]
[1758190240155,0.66,246.39,246.35,0.67]
[1758190240650,36.61845285,246.4,246.35,0.67]
[1758190240962,32.56,246.4,246.36,0.67]
[1758190241568,33.22,246.4,246.36,0.67]
[1758190241780,33.22,246.4,246.37,0.67]
[1758190241781,32.56,246.4,246.37,0.67]
[1758190241956,32.56,246.4,246.38,0.67]
[1758190242276,32.56,246.4,246.39,0.67]
[1758190242456,33.22,246.4,246.36,26.0]
[1758190242659,0.66,246.39,246.33,14.26559401]
[1758190243264,32.56,246.4,246.34,0.67]
[1758190243466,32.56,246.4,246.35,0.14216157]
[1758190243657,32.56,246.4,246.37,13.59559401]
[1758190243858,32.56,246.4,246.38,0.67]
[1758190244053,0.06,246.44,246.38,0.67]
[1758190244252,37.2977937,246.44,246.38,0.67]
[1758190244472,33.24,246.44,246.38,0.67]
[1758190245781,37.29779734,246.44,246.38,0.67]
[1758190245969,37.29779734,246.44,246.37,17.65442598]
[1758190246278,0.66,246.43,246.37,17.65442598]
[1758190246453,0.66,246.42,246.37,17.65442598]
[1758190246657,0.66,246.43,246.37,17.65442598]
[1758190246888,0.66,246.43,246.37,18.32442598]
[1758190247175,34.6964,246.44,246.38,14.26559401]
[1758190247378,2.1164,246.43,246.38,14.26559401]
[1758190247555,0.66,246.42,246.37,4.05883197]
[1758190247752,0.66,246.42,246.35,0.81216157]
[1758190247753,0.66,246.41,246.35,0.14216157]
[1758190248453,0.66,246.41,246.36,13.59559401]
[1758190248777,4.82681812,246.43,246.33,0.67]
[1758190248778,2.12308269,246.4,246.33,0.67]
[1758190248963,32.86,246.39,246.33,0.67]
[1758190249275,33.52,246.39,246.33,0.67]
[1758190249458,37.57864506,246.39,246.33,0.67]
[1758190250057,37.57864506,246.39,246.31,13.73775558]
[1758190250257,0.66,246.38,246.31,13.73775558]
[1758190250454,33.0,246.39,246.32,0.67]
[1758190250754,33.68,246.4,246.33,13.59559401]
[1758190250982,33.02,246.4,246.34,30.72927599]
[1758190252082,33.68,246.4,246.34,4.72927599]
[1758190252387,1.46308269,246.38,246.32,13.59559401]
[1758190252589,0.66,246.37,246.32,13.59559401]
[1758190252772,0.66,246.37,246.32,14.26559401]
[1758190254185,3.37430883,246.39,246.33,0.67]
[1758190254361,2.12308269,246.38,246.31,0.03]
[1758190254561,0.66,246.38,246.31,0.03]
[1758190254987,1.46308269,246.34,246.31,0.03]
[1758190255179,33.42,246.34,246.31,0.03]
[1758190255362,0.72,246.33,246.31,0.03]
[1758190256166,33.42,246.34,246.31,0.03]
[1758190256167,0.72,246.32,246.31,0.03]
[1758190257592,34.14,246.34,246.31,0.03]
[1758190257967,0.72,246.33,246.31,0.03]
[1758190258377,0.72,246.32,246.31,0.03]
[1758190258779,37.47943687,246.34,246.31,0.03]
[1758190259068,33.42,246.34,246.31,0.7]
[1758190259275,33.42,246.34,246.31,0.03]
[1758190259991,33.42,246.34,246.31,0.7]
[1758190260589,5.51230034,246.43,246.31,0.7]
[1758190260590,0.72,246.38,246.32,0.67]
[1758190260892,33.42,246.37,246.32,0.67]
[1758190261074,34.14,246.38,246.33,0.67]
[1758190261275,34.14,246.38,246.31,0.03]
[1758190261276,33.42,246.38,246.34,0.67]
[1758190261480,34.14,246.38,246.34,0.67]
[1758190261895,33.42,246.38,246.34,0.67]
[1758190262192,33.42,246.38,246.34,4.72931105]
[1758190262389,0.67,246.37,246.32,0.7]
[1758190262777,0.67,246.37,246.33,0.7]
[1758190263182,2.71799519,246.38,246.34,0.7]
[1758190263382,2.71799519,246.38,246.35,0.7]
[1758190263780,33.4,246.39,246.36,0.7]
[1758190264297,33.4,246.39,246.34,0.7]
[1758190264703,34.07,246.39,246.34,0.7]
[1758190265799,34.07,246.39,246.33,4.05959485]
[1758190265991,33.4,246.39,246.35,0.7]
[1758190266190,33.4,246.39,246.36,0.7]
[1758190266508,33.4,246.39,246.33,4.05959485]
[1758190266704,3.38856677,246.38,246.32,13.59559401]
[1758190266877,2.71856677,246.38,246.33,0.7]
[1758190267203,3.38856677,246.38,246.33,0.7]
[1758190267876,2.71856677,246.38,246.33,0.7]
[1758190268077,3.38856677,246.38,246.34,4.05943005]
[1758190269001,0.67,246.38,246.34,4.05943005]
[1758190269497,0.67,246.41,246.35,13.59559401]
[1758190269709,34.27,246.41,246.36,0.7]
[1758190270074,2.7220814,246.4,246.37,4.05893574]
[1758190270599,2.7220814,246.4,246.37,4.75893574]
[1758190270797,26.0,246.34,246.31,0.03]
[1758190271026,36.28149699,246.33,246.31,0.03]
[1758190271214,4.18457968,246.32,246.31,0.03]
[1758190271581,35.69308269,246.32,246.31,0.03]
[1758190271790,38.41371928,246.32,246.31,0.03]
[1758190271989,34.23,246.32,246.31,0.03]
[1758190272484,35.69308269,246.32,246.31,0.03]
[1758190274000,34.23,246.32,246.31,0.03]
[1758190274288,38.41411326,246.32,246.31,0.03]
[1758190276424,38.6984364,246.32,246.31,0.03]
[1758190276825,39.1584364,246.32,246.31,0.03]
[1758190276990,26.0,246.29,246.28,0.03]
[1758190277191,64.5084364,246.29,246.28,0.03]
[1758190277389,69.23869057,246.29,246.28,0.03]
[1758190277621,35.19869057,246.29,246.28,0.03]
[1758190277803,69.21869057,246.29,246.28,0.03]
[1758190279102,35.19869057,246.29,246.28,0.03]
[1758190279302,69.21869057,246.29,246.28,0.03]
[1758190280033,36.02625028,246.29,246.28,0.03]
[1758190280216,69.98625028,246.29,246.28,0.03]
[1758190280607,35.74192714,246.29,246.28,0.03]
[1758190280808,69.70192714,246.29,246.28,0.03]
[1758190281203,2.72103057,246.29,246.28,0.03]
[1758190281506,36.2306424,246.29,246.28,0.03]
[1758190284903,40.29089657,246.29,246.28,0.03]
[1758190288021,38.00025417,246.29,246.28,0.03]
[1758190288541,40.29089657,246.29,246.28,0.03]
[1758190290027,38.00025417,246.29,246.28,0.03]
[1758190290327,36.2306424,246.29,246.28,0.03]
[1758190290826,33.7,246.29,246.28,0.73]
[1758190291739,33.7,246.29,246.28,0.03]
[1758190293207,0.06,246.32,246.29,13.59559401]
[1758190293421,0.06,246.32,246.3,0.69]
[1758190294333,0.06,246.32,246.31,4.05992448]
[1758190294526,0.06,246.32,246.31,17.65551849]
[1758190294732,0.06,246.32,246.31,18.34551849]
[1758190295834,0.06,246.32,246.31,18.48768006]
[1758190299537,0.06,246.32,246.31,18.7720032]
[1758190300338,0.06,246.41,246.35,13.59559401]
[1758190300937,0.06,246.41,246.36,0.69]
[1758190301319,0.06,246.41,246.38,4.058771]
[1758190302215,0.06,246.41,246.38,4.748771]
[1758190303223,0.06,246.41,246.38,4.058771]
[1758190303540,0.06,246.41,246.38,4.748771]
[1758190303733,0.06,246.41,246.38,4.058771]
[1758190303933,0.06,246.41,246.39,0.69]
[1758190304131,0.06,246.41,246.38,4.058771]
[1758190304132,2.9706424,246.4,246.29,0.69]
[1758190304336,2.2906424,246.38,246.29,4.75025417]
[1758190304632,0.68,246.37,246.3,26.0]
[1758190304836,0.68,246.36,246.3,26.0]
[1758190305138,35.7106424,246.39,246.29,4.75025417]
[1758190305343,0.68,246.35,246.29,4.75025417]
[1758190306036,0.68,246.34,246.28,0.03]
[1758190306337,0.68,246.34,246.28,0.72]
[1758190306732,0.68,246.34,246.28,4.78037158]
[1758190308032,4.73946914,246.34,246.28,4.78037158]
[1758190308920,0.68,246.34,246.28,4.78037158]
[1758190309733,4.79953834,246.34,246.28,0.72]
[1758190310039,0.74,246.34,246.28,4.78039827]
[1758190311837,4.79945203,246.34,246.28,0.72]
[1758190312349,4.79945203,246.34,246.28,4.78039216]
[1758190312749,0.06,246.34,246.29,0.69]
[1758190313326,0.06,246.34,246.3,0.69]
[1758190313846,0.06,246.34,246.3,4.74997482]
[1758190314048,0.06,246.34,246.3,4.05997482]
[1758190314247,0.06,246.34,246.31,0.69]
[1758190314750,0.06,246.34,246.32,0.69]
[1758190315122,0.06,246.34,246.33,0.67]
[1758190316068,0.06,246.34,246.33,4.72959485]
[1758190316351,0.06,246.34,246.33,18.32518886]
[1758190316930,0.06,246.34,246.33,18.46735043]
[1758190320454,0.06,246.34,246.33,17.79735043]
[1758190320660,0.06,246.34,246.33,18.46735043]
[1758190321764,0.06,246.34,246.33,18.75167357]
[1758190327845,0.06,246.34,246.33,18.65167357]
[1758190328552,0.06,246.37,246.36,39.59559401]
[1758190328751,0.06,246.37,246.36,39.73775558]
[1758190329062,0.06,246.37,246.36,40.40775558]
[1758190330968,0.06,246.37,246.36,44.46685608]
[1758190331371,0.06,246.37,246.36,44.75117922]
[1758190332053,0.06,246.37,246.36,44.08117922]
[1758190334264,0.06,246.37,246.36,44.75117922]
[1758190337146,0.06,246.41,246.4,39.59559401]